[Event "*** Biggest EVER Titled Tuesday"]
[Site "Chess.com"]
[Date "2018.04.17"]
[Round "5"]
[White "Bauxi435"]
[Black "IMRosen"]
[Result "0-1"]
[WhiteElo "2428"]
[BlackElo "2399"]
[TimeControl "180+2"]
[EndTime "14:09:28 PDT"]
[Termination "IMRosen won by resignation"]

1. d4 {[%clk 0:03:01.9]} 1... Nf6 {[%clk 0:02:59.2]} 2. c4 {[%clk 0:03:01.9]}
2... e6 {[%clk 0:02:59.6]} 3. Nc3 {[%clk 0:03:02.7]} 3... Bb4 {[%clk 0:02:59.4]}
4. Bg5 {[%clk 0:03:03.6]} 4... Nc6 {[%clk 0:02:51.3]} 5. e3 {[%clk 0:03:01.6]}
5... h6 {[%clk 0:02:51.7]} 6. Bh4 {[%clk 0:02:59.6]} 6... d6 {[%clk 0:02:43]} 7.
Bd3 {[%clk 0:02:59.6]} 7... e5 {[%clk 0:02:38.8]} 8. Ne2 {[%clk 0:02:55.1]} 8...
g5 {[%clk 0:02:27.6]} 9. Bg3 {[%clk 0:02:55.3]} 9... Qe7 {[%clk 0:02:28.5]} 10.
d5 {[%clk 0:02:55.9]} 10... Bxc3+ {[%clk 0:02:27.9]} 11. Nxc3 {[%clk 0:02:52.9]}
11... Nb8 {[%clk 0:02:19.8]} 12. e4 {[%clk 0:02:50.1]} 12... Nbd7 {[%clk
0:02:16.1]} 13. h4 {[%clk 0:02:46.5]} 13... g4 {[%clk 0:02:08.1]} 14. b4 {[%clk
0:02:38]} 14... h5 {[%clk 0:02:06.9]} 15. O-O {[%clk 0:02:31.6]} 15... Nf8
{[%clk 0:02:07.7]} 16. f4 {[%clk 0:02:13.2]} 16... gxf3 {[%clk 0:01:56.1]} 17.
Qxf3 {[%clk 0:02:13.3]} 17... Ng4 {[%clk 0:01:54]} 18. Nb5 {[%clk 0:01:27.2]}
18... Ng6 {[%clk 0:01:47.8]} 19. Rac1 {[%clk 0:01:26.3]} 19... a6 {[%clk
0:01:46.4]} 20. Na3 {[%clk 0:01:26.6]} 20... Nxh4 {[%clk 0:01:21.3]} 21. Bxh4
{[%clk 0:01:27.2]} 21... Qxh4 {[%clk 0:01:23.2]} 22. Qh3 {[%clk 0:00:38.9]}
22... Qg5 {[%clk 0:01:05.9]} 23. Rce1 {[%clk 0:00:38.2]} 23... Rg8 {[%clk
0:00:51.7]} 24. Qf3 {[%clk 0:00:35.9]} 24... Rg7 {[%clk 0:00:50.5]} 25. Qg3
{[%clk 0:00:25.7]} 25... h4 {[%clk 0:00:49.3]} 26. Qf3 {[%clk 0:00:24.8]} 26...
Qd2 {[%clk 0:00:37]} 27. c5 {[%clk 0:00:22.1]} 27... Qxb4 {[%clk 0:00:35.2]} 28.
Nc4 {[%clk 0:00:16.9]} 28... Qxc5+ {[%clk 0:00:35.5]} 29. Kh1 {[%clk 0:00:18.4]}
29... Bd7 {[%clk 0:00:32.3]} 30. Rc1 {[%clk 0:00:18.9]} 30... Qd4 {[%clk
0:00:31.6]} 31. Nd2 {[%clk 0:00:18]} 31... Rc8 {[%clk 0:00:29.2]} 32. Nb3 {[%clk
0:00:19]} 32... Qe3 {[%clk 0:00:30]} 33. Qxe3 {[%clk 0:00:17.2]} 33... Nxe3
{[%clk 0:00:31.9]} 34. Rf6 {[%clk 0:00:17.8]} 34... Ng4 {[%clk 0:00:24.9]} 35.
Rf3 {[%clk 0:00:16.5]} 35... Ke7 {[%clk 0:00:24.3]} 36. Na5 {[%clk 0:00:17.5]}
36... b6 {[%clk 0:00:23.6]} 37. Nc6+ {[%clk 0:00:16.7]} 37... Bxc6 {[%clk
0:00:17.9]} 38. dxc6 {[%clk 0:00:17.4]} 38... a5 {[%clk 0:00:17.1]} 39. Bc4
{[%clk 0:00:18.3]} 39... Rcg8 {[%clk 0:00:16.4]} 40. Rcf1 {[%clk 0:00:18.4]}
40... Nh6 {[%clk 0:00:18]} 41. R1f2 {[%clk 0:00:18.5]} 41... Rf8 {[%clk
0:00:17.3]} 42. Rf6 {[%clk 0:00:19.6]} 42... Ng4 {[%clk 0:00:18.3]} 43. R6f3
{[%clk 0:00:19.3]} 43... Nxf2+ {[%clk 0:00:19.1]} 44. Rxf2 {[%clk 0:00:21.2]}
44... f6 {[%clk 0:00:20.3]} 45. Bd5 {[%clk 0:00:22.7]} 45... Rg3 {[%clk
0:00:20.8]} 46. Kh2 {[%clk 0:00:24.1]} 46... Rh8 {[%clk 0:00:21.9]} 47. Rf5
{[%clk 0:00:24.4]} 47... Rg4 {[%clk 0:00:21.5]} 48. Kh3 {[%clk 0:00:25.1]} 48...
Rg3+ {[%clk 0:00:22.1]} 49. Kh2 {[%clk 0:00:26]} 49... Rg5 {[%clk 0:00:23.7]}
50. Rf3 {[%clk 0:00:27]} 50... Rh7 {[%clk 0:00:24]} 51. Rb3 {[%clk 0:00:26.1]}
51... Rhg7 {[%clk 0:00:24.2]} 52. Kh3 {[%clk 0:00:26]} 52... Rg3+ {[%clk
0:00:24.9]} 53. Rxg3 {[%clk 0:00:26.1]} 53... Rxg3+ {[%clk 0:00:26.8]} 54. Kh2
{[%clk 0:00:27.7]} 54... Kf8 {[%clk 0:00:27.1]} 0-1

[Event "*** Biggest EVER Titled Tuesday"]
[Site "Chess.com"]
[Date "2018.04.17"]
[Round "5"]
[White "chessking2151"]
[Black "WarlordX"]
[Result "0-1"]
[WhiteElo "2352"]
[BlackElo "2285"]
[TimeControl "180+2"]
[EndTime "14:09:28 PDT"]
[Termination "WarlordX won by resignation"]

1. e4 {[%clk 0:03:01.9]} 1... c5 {[%clk 0:02:59.9]} 2. Nf3 {[%clk 0:03:01.6]}
2... d6 {[%clk 0:03:01]} 3. d4 {[%clk 0:03:02.5]} 3... cxd4 {[%clk 0:03:02.8]}
4. Nxd4 {[%clk 0:03:04.4]} 4... Nf6 {[%clk 0:03:04.3]} 5. Nc3 {[%clk 0:03:06]}
5... a6 {[%clk 0:03:05.9]} 6. Be3 {[%clk 0:03:07.2]} 6... e5 {[%clk 0:03:06.3]}
7. Nb3 {[%clk 0:03:08.3]} 7... Be7 {[%clk 0:03:07.8]} 8. f3 {[%clk 0:03:08.3]}
8... Be6 {[%clk 0:03:09.2]} 9. Qd2 {[%clk 0:03:08.4]} 9... d5 {[%clk 0:03:10.4]}
10. exd5 {[%clk 0:03:04.7]} 10... Nxd5 {[%clk 0:03:12]} 11. Nxd5 {[%clk
0:03:05.7]} 11... Qxd5 {[%clk 0:03:13.5]} 12. Qxd5 {[%clk 0:03:05]} 12... Bxd5
{[%clk 0:03:14.6]} 13. O-O-O {[%clk 0:03:06.1]} 13... Be6 {[%clk 0:03:11.8]} 14.
Nc5 {[%clk 0:03:04.7]} 14... Bc8 {[%clk 0:03:12.8]} 15. Bc4 {[%clk 0:02:55.3]}
15... Nc6 {[%clk 0:03:13.8]} 16. Bd5 {[%clk 0:02:51.7]} 16... O-O {[%clk
0:03:06.5]} 17. Bxc6 {[%clk 0:02:31.1]} 17... bxc6 {[%clk 0:03:07.9]} 18. c4
{[%clk 0:02:31.2]} 18... a5 {[%clk 0:03:04.3]} 19. b3 {[%clk 0:02:31]} 19... Bf5
{[%clk 0:02:59.8]} 20. Kb2 {[%clk 0:02:28.5]} 20... Rfb8 {[%clk 0:02:56.9]} 21.
g4 {[%clk 0:02:22.8]} 21... Bg6 {[%clk 0:02:45]} 22. Nd7 {[%clk 0:02:21.6]}
22... Re8 {[%clk 0:02:41.4]} 23. Nb6 {[%clk 0:02:20.4]} 23... Rad8 {[%clk
0:02:35.9]} 24. Na4 {[%clk 0:01:59.8]} 24... Bf6 {[%clk 0:02:23.4]} 25. g5
{[%clk 0:01:59.4]} 25... Be7 {[%clk 0:02:22.3]} 26. h4 {[%clk 0:01:58.8]} 26...
Bh5 {[%clk 0:02:11.9]} 27. Rxd8 {[%clk 0:01:07.9]} 27... Rxd8 {[%clk 0:02:12.9]}
28. Rf1 {[%clk 0:01:09.3]} 28... Rd3 {[%clk 0:02:10.5]} 29. Bc5 {[%clk
0:01:09.9]} 29... Bd8 {[%clk 0:01:33.1]} 30. f4 {[%clk 0:01:04.1]} 30... e4
{[%clk 0:01:28.3]} 31. Re1 {[%clk 0:01:04.9]} 31... Bf3 {[%clk 0:01:15.3]} 32.
Re3 {[%clk 0:00:53.3]} 32... Rd2+ {[%clk 0:01:14.3]} 33. Kc1 {[%clk 0:00:47.1]}
33... Rh2 {[%clk 0:00:30.2]} 34. Bd4 {[%clk 0:00:32.6]} 34... Be7 {[%clk
0:00:26.3]} 35. Bc5 {[%clk 0:00:30.5]} 35... Bd8 {[%clk 0:00:27.3]} 36. Bd4
{[%clk 0:00:31.5]} 36... Bc7 {[%clk 0:00:28.7]} 37. Be5 {[%clk 0:00:31.9]} 37...
Bxe5 {[%clk 0:00:27.6]} 38. fxe5 {[%clk 0:00:33.8]} 38... Rxh4 {[%clk
0:00:25.4]} 39. Nc5 {[%clk 0:00:35]} 39... Rh2 {[%clk 0:00:23.1]} 40. a4 {[%clk
0:00:28.6]} 40... Rg2 {[%clk 0:00:21.1]} 41. b4 {[%clk 0:00:28.2]} 41... axb4
{[%clk 0:00:22]} 42. a5 {[%clk 0:00:29.6]} 42... Ra2 {[%clk 0:00:22.6]} 43. a6
{[%clk 0:00:30.5]} 43... h5 {[%clk 0:00:21.6]} 44. gxh6 {[%clk 0:00:28.8]} 44...
gxh6 {[%clk 0:00:22.9]} 45. Kb1 {[%clk 0:00:30.3]} 45... Ra5 {[%clk 0:00:23.5]}
46. Kb2 {[%clk 0:00:31.2]} 46... Rxc5 {[%clk 0:00:22.2]} 47. Re1 {[%clk
0:00:32.1]} 47... Rxe5 {[%clk 0:00:11.5]} 48. a7 {[%clk 0:00:25]} 48... Re8
{[%clk 0:00:11.1]} 49. Kb3 {[%clk 0:00:25.1]} 49... c5 {[%clk 0:00:10.9]} 50.
Ka4 {[%clk 0:00:26.3]} 50... Ra8 {[%clk 0:00:11.7]} 0-1

[Event "*** Biggest EVER Titled Tuesday"]
[Site "Chess.com"]
[Date "2018.04.17"]
[Round "5"]
[White "fyall777"]
[Black "rekosheten"]
[Result "1-0"]
[WhiteElo "2369"]
[BlackElo "2324"]
[TimeControl "180+2"]
[EndTime "14:09:28 PDT"]
[Termination "fyall777 won by resignation"]

1. d4 {[%clk 0:03:01.9]} 1... Nf6 {[%clk 0:03:00.6]} 2. c3 {[%clk 0:03:03]} 2...
Nc6 {[%clk 0:02:57.8]} 3. Bg5 {[%clk 0:03:03.2]} 3... e5 {[%clk 0:02:57.5]} 4.
d5 {[%clk 0:03:00.6]} 4... Ne7 {[%clk 0:02:56.9]} 5. Bxf6 {[%clk 0:03:00.4]}
5... gxf6 {[%clk 0:02:58.8]} 6. e4 {[%clk 0:03:01.2]} 6... f5 {[%clk 0:02:58.5]}
7. Qh5 {[%clk 0:02:56.3]} 7... d6 {[%clk 0:02:53.1]} 8. Nd2 {[%clk 0:02:25.1]}
8... fxe4 {[%clk 0:02:22.8]} 9. Nxe4 {[%clk 0:02:22.6]} 9... Nxd5 {[%clk
0:02:24.2]} 10. Bc4 {[%clk 0:02:15.8]} 10... c6 {[%clk 0:02:04.2]} 11. Nf3
{[%clk 0:02:15.9]} 11... Be7 {[%clk 0:01:49.9]} 12. O-O-O {[%clk 0:02:14.4]}
12... Be6 {[%clk 0:01:24.4]} 13. Nfg5 {[%clk 0:02:12.8]} 13... Qd7 {[%clk
0:01:16]} 14. Nxe6 {[%clk 0:01:57.8]} 14... Qxe6 {[%clk 0:01:16.4]} 15. Ng3
{[%clk 0:01:34.7]} 15... O-O-O {[%clk 0:01:09.1]} 16. Nf5 {[%clk 0:01:34.2]}
16... Bf8 {[%clk 0:00:56.7]} 17. Rhe1 {[%clk 0:01:14.5]} 17... Rg8 {[%clk
0:00:54.2]} 18. Qh3 {[%clk 0:01:11.3]} 18... Kb8 {[%clk 0:00:50.4]} 19. g3
{[%clk 0:00:48.1]} 19... Rg5 {[%clk 0:00:49.5]} 20. Bd3 {[%clk 0:00:29.2]} 20...
Ne7 {[%clk 0:00:44.3]} 21. g4 {[%clk 0:00:23.3]} 21... Nxf5 {[%clk 0:00:35.7]}
22. Bxf5 {[%clk 0:00:22.6]} 22... Qxa2 {[%clk 0:00:37.6]} 23. Qxh7 {[%clk
0:00:20.9]} 23... a5 {[%clk 0:00:23.1]} 24. h4 {[%clk 0:00:21]} 24... Rg7 {[%clk
0:00:22.8]} 25. Qh6 {[%clk 0:00:18.2]} 25... Rxg4 {[%clk 0:00:19.4]} 26. Qf6
{[%clk 0:00:19.1]} 26... Qa1+ {[%clk 0:00:14.4]} 27. Kc2 {[%clk 0:00:17.5]}
27... Qa4+ {[%clk 0:00:15.9]} 28. Kb1 {[%clk 0:00:18.6]} 28... Re8 {[%clk
0:00:13.2]} 29. Qxf7 {[%clk 0:00:16.7]} 29... Rd8 {[%clk 0:00:13.3]} 30. Bxg4
{[%clk 0:00:16.7]} 30... Qxg4 {[%clk 0:00:13.6]} 31. h5 {[%clk 0:00:17.9]} 31...
Bh6 {[%clk 0:00:08.4]} 32. Qg6 {[%clk 0:00:18.5]} 32... Qf4 {[%clk 0:00:07.8]}
33. Rxd6 {[%clk 0:00:16.9]} 33... Rf8 {[%clk 0:00:07.1]} 34. Qxh6 {[%clk
0:00:15.8]} 34... Qxf2 {[%clk 0:00:08.4]} 35. Rxe5 {[%clk 0:00:15]} 35... Qf1+
{[%clk 0:00:09.1]} 36. Qc1 {[%clk 0:00:12.9]} 36... Qc4 {[%clk 0:00:10.5]} 37.
Rde6 {[%clk 0:00:13.8]} 37... Rf1 {[%clk 0:00:08.3]} 38. Re1 {[%clk 0:00:12.6]}
38... Rf5 {[%clk 0:00:08.9]} 39. Re8+ {[%clk 0:00:11.3]} 39... Ka7 {[%clk
0:00:09.5]} 40. Qe3+ {[%clk 0:00:12.8]} 40... c5 {[%clk 0:00:10.1]} 41. Qg3
{[%clk 0:00:10.6]} 41... Qd3+ {[%clk 0:00:07.5]} 42. Qxd3 {[%clk 0:00:10.9]} 1-0

[Event "*** Biggest EVER Titled Tuesday"]
[Site "Chess.com"]
[Date "2018.04.17"]
[Round "5"]
[White "bascheyaro"]
[Black "Blitzstream"]
[Result "0-1"]
[WhiteElo "2671"]
[BlackElo "2473"]
[TimeControl "180+2"]
[EndTime "14:09:42 PDT"]
[Termination "Blitzstream won by resignation"]

1. d4 {[%clk 0:03:01.9]} 1... Nf6 {[%clk 0:03:00.5]} 2. Nf3 {[%clk 0:03:03]}
2... b5 {[%clk 0:02:59.7]} 3. Bg5 {[%clk 0:03:03]} 3... Ne4 {[%clk 0:02:59.2]}
4. Bh4 {[%clk 0:03:04.3]} 4... a6 {[%clk 0:02:54.5]} 5. Nbd2 {[%clk 0:03:00.3]}
5... Bb7 {[%clk 0:02:52.8]} 6. e3 {[%clk 0:03:01.3]} 6... g6 {[%clk 0:02:47.9]}
7. c4 {[%clk 0:03:01.9]} 7... bxc4 {[%clk 0:02:42.7]} 8. Bxc4 {[%clk 0:03:02.1]}
8... Nxd2 {[%clk 0:02:10.3]} 9. Qxd2 {[%clk 0:03:00.2]} 9... Bg7 {[%clk
0:01:52.7]} 10. Qb4 {[%clk 0:03:01.2]} 10... Bxf3 {[%clk 0:01:50.6]} 11. gxf3
{[%clk 0:03:02.1]} 11... Nc6 {[%clk 0:01:50.5]} 12. Qc5 {[%clk 0:02:54.6]} 12...
Rb8 {[%clk 0:01:32.6]} 13. b3 {[%clk 0:02:55.1]} 13... O-O {[%clk 0:01:25.3]}
14. f4 {[%clk 0:02:55.6]} 14... Rb6 {[%clk 0:01:18.3]} 15. f5 {[%clk 0:02:49.6]}
15... d6 {[%clk 0:01:13.8]} 16. Qa3 {[%clk 0:02:47.4]} 16... Qc8 {[%clk
0:01:04.4]} 17. fxg6 {[%clk 0:02:41.3]} 17... hxg6 {[%clk 0:01:06.3]} 18. Qc1
{[%clk 0:02:16.1]} 18... Qg4 {[%clk 0:01:03.5]} 19. Bg3 {[%clk 0:02:16.8]} 19...
e5 {[%clk 0:00:56.6]} 20. d5 {[%clk 0:02:00.1]} 20... Ne7 {[%clk 0:00:57.2]} 21.
Qd1 {[%clk 0:02:00.1]} 21... Qe4 {[%clk 0:00:39.1]} 22. Ke2 {[%clk 0:02:01.2]}
22... Qg4+ {[%clk 0:00:35.7]} 23. f3 {[%clk 0:02:01.9]} 23... Qd7 {[%clk
0:00:36.1]} 24. Qc2 {[%clk 0:01:55.3]} 24... c6 {[%clk 0:00:35.9]} 25. Rad1
{[%clk 0:01:44.4]} 25... cxd5 {[%clk 0:00:29.1]} 26. Bxd5 {[%clk 0:01:45.6]}
26... Rc8 {[%clk 0:00:28.8]} 27. Qe4 {[%clk 0:01:46.2]} 27... Nxd5 {[%clk
0:00:29.2]} 28. Rxd5 {[%clk 0:01:47]} 28... Rbc6 {[%clk 0:00:29.1]} 29. Rhd1
{[%clk 0:01:47.6]} 29... Rc2+ {[%clk 0:00:30]} 30. R1d2 {[%clk 0:01:49.1]} 30...
Rxd2+ {[%clk 0:00:30.8]} 31. Rxd2 {[%clk 0:01:50.3]} 31... Qb5+ {[%clk
0:00:30.2]} 32. Qd3 {[%clk 0:01:51.1]} 32... Qxd3+ {[%clk 0:00:30]} 33. Kxd3
{[%clk 0:01:43]} 33... Kf8 {[%clk 0:00:30.8]} 34. f4 {[%clk 0:01:38.6]} 34...
Ke7 {[%clk 0:00:30.7]} 35. fxe5 {[%clk 0:01:37.9]} 35... dxe5 {[%clk 0:00:31.7]}
36. e4 {[%clk 0:01:32.8]} 36... f5 {[%clk 0:00:30.8]} 37. Bh4+ {[%clk
0:01:26.5]} 37... Ke6 {[%clk 0:00:31]} 38. Rg2 {[%clk 0:01:26.8]} 38... Kf7
{[%clk 0:00:25.7]} 39. Be1 {[%clk 0:01:12.3]} 39... Rc6 {[%clk 0:00:24.8]} 40.
Bb4 {[%clk 0:01:11.3]} 40... Bf6 {[%clk 0:00:13.8]} 41. h3 {[%clk 0:01:08.9]}
41... Be7 {[%clk 0:00:13.4]} 42. Bxe7 {[%clk 0:01:03]} 42... Kxe7 {[%clk
0:00:15.3]} 43. exf5 {[%clk 0:01:03.2]} 43... gxf5 {[%clk 0:00:15.5]} 44. Rg7+
{[%clk 0:01:04.2]} 44... Kf6 {[%clk 0:00:16.3]} 45. Rg8 {[%clk 0:01:05.2]} 45...
e4+ {[%clk 0:00:14.4]} 46. Kd2 {[%clk 0:01:02.8]} 46... Ke5 {[%clk 0:00:14]} 47.
Rg1 {[%clk 0:01:00.1]} 47... Kd4 {[%clk 0:00:13.6]} 48. h4 {[%clk 0:00:57.9]}
48... f4 {[%clk 0:00:14.1]} 49. h5 {[%clk 0:00:57.9]} 49... e3+ {[%clk
0:00:15.2]} 50. Ke2 {[%clk 0:00:59.4]} 50... Rc2+ {[%clk 0:00:16.3]} 51. Kf3
{[%clk 0:01:00.9]} 51... Rf2+ {[%clk 0:00:17.2]} 52. Kg4 {[%clk 0:01:02.3]}
52... e2 {[%clk 0:00:18.4]} 53. Re1 {[%clk 0:00:59.5]} 53... Ke3 {[%clk
0:00:19.4]} 54. h6 {[%clk 0:00:51]} 54... Rh2 {[%clk 0:00:20.3]} 55. Kg5 {[%clk
0:00:46.7]} 55... f3 {[%clk 0:00:21.3]} 56. Rc1 {[%clk 0:00:47.3]} 56... f2
{[%clk 0:00:21.6]} 0-1

[Event "*** Biggest EVER Titled Tuesday"]
[Site "Chess.com"]
[Date "2018.04.17"]
[Round "5"]
[White "JustKid"]
[Black "ehrenfeld"]
[Result "1-0"]
[WhiteElo "2477"]
[BlackElo "2480"]
[TimeControl "180+2"]
[EndTime "14:09:52 PDT"]
[Termination "JustKid won on time"]

1. d4 {[%clk 0:02:55.9]} 1... Nf6 {[%clk 0:03:00]} 2. Bf4 {[%clk 0:02:57.1]}
2... d6 {[%clk 0:02:57.7]} 3. Nf3 {[%clk 0:02:57.5]} 3... Nbd7 {[%clk
0:02:54.9]} 4. e3 {[%clk 0:02:58.5]} 4... g6 {[%clk 0:02:47.1]} 5. c3 {[%clk
0:02:59.1]} 5... Bg7 {[%clk 0:02:47.4]} 6. h3 {[%clk 0:03:00.7]} 6... O-O {[%clk
0:02:46.8]} 7. Bh2 {[%clk 0:03:02.3]} 7... c5 {[%clk 0:02:43.7]} 8. Nbd2 {[%clk
0:02:55.3]} 8... b6 {[%clk 0:02:44.6]} 9. Bd3 {[%clk 0:02:56]} 9... Bb7 {[%clk
0:02:45.7]} 10. O-O {[%clk 0:02:56.9]} 10... Re8 {[%clk 0:02:44.7]} 11. e4
{[%clk 0:02:51.7]} 11... cxd4 {[%clk 0:02:25.5]} 12. cxd4 {[%clk 0:02:43.2]}
12... Nf8 {[%clk 0:02:22.9]} 13. Qe2 {[%clk 0:02:40.5]} 13... a6 {[%clk
0:02:23.1]} 14. Rfc1 {[%clk 0:02:39.8]} 14... Qd7 {[%clk 0:02:20.7]} 15. Nc4
{[%clk 0:02:24.5]} 15... Qd8 {[%clk 0:02:18.7]} 16. a4 {[%clk 0:02:15.8]} 16...
d5 {[%clk 0:02:08.3]} 17. exd5 {[%clk 0:01:49.1]} 17... Nxd5 {[%clk 0:02:07.4]}
18. Nce5 {[%clk 0:01:35]} 18... f6 {[%clk 0:01:51.6]} 19. Nc4 {[%clk 0:01:30.8]}
19... Qd7 {[%clk 0:01:47.8]} 20. Be4 {[%clk 0:01:28.7]} 20... Rad8 {[%clk
0:01:30.7]} 21. Ne3 {[%clk 0:01:13.2]} 21... Nxe3 {[%clk 0:00:55]} 22. Rc7
{[%clk 0:01:07.8]} 22... Bxe4 {[%clk 0:00:27.1]} 23. Rxd7 {[%clk 0:01:08]} 23...
Rxd7 {[%clk 0:00:25.3]} 24. Qxe3 {[%clk 0:01:08.3]} 24... Bd5 {[%clk 0:00:25.8]}
25. Rc1 {[%clk 0:01:00.9]} 25... Red8 {[%clk 0:00:25.7]} 26. Bc7 {[%clk
0:00:58]} 26... Re8 {[%clk 0:00:25.8]} 27. Bxb6 {[%clk 0:00:52.3]} 27... Rb8
{[%clk 0:00:23.7]} 28. a5 {[%clk 0:00:52.9]} 28... Re8 {[%clk 0:00:21.3]} 29. b4
{[%clk 0:00:53.1]} 29... Kf7 {[%clk 0:00:19.5]} 30. Ne1 {[%clk 0:00:50.5]} 30...
Ne6 {[%clk 0:00:19.8]} 31. Nd3 {[%clk 0:00:51.1]} 31... Rd6 {[%clk 0:00:14.4]}
32. Nc5 {[%clk 0:00:41.1]} 32... f5 {[%clk 0:00:13.6]} 33. Nxa6 {[%clk
0:00:33.9]} 33... f4 {[%clk 0:00:07.4]} 34. Qd2 {[%clk 0:00:25.2]} 34... f3
{[%clk 0:00:08.5]} 35. gxf3 {[%clk 0:00:20.6]} 35... Rxb6 {[%clk 0:00:08.7]} 36.
axb6 {[%clk 0:00:21.6]} 36... Nxd4 {[%clk 0:00:09.8]} 37. Qf4+ {[%clk
0:00:19.3]} 37... Bf6 {[%clk 0:00:09.9]} 38. Kf1 {[%clk 0:00:10.2]} 38... Be6
{[%clk 0:00:08.8]} 39. Nc5 {[%clk 0:00:09.2]} 39... Bxh3+ {[%clk 0:00:09.3]} 40.
Ke1 {[%clk 0:00:10.7]} 40... Rd8 {[%clk 0:00:09]} 41. Ne4 {[%clk 0:00:11.7]}
41... Bf5 {[%clk 0:00:08.7]} 42. Nxf6 {[%clk 0:00:12.5]} 42... exf6 {[%clk
0:00:07.3]} 43. Qc7+ {[%clk 0:00:11.8]} 43... Rd7 {[%clk 0:00:08.4]} 44. Qxd7+
{[%clk 0:00:12.5]} 44... Bxd7 {[%clk 0:00:09.1]} 45. b7 {[%clk 0:00:14.4]} 45...
Nxf3+ {[%clk 0:00:08.8]} 46. Kf1 {[%clk 0:00:09.7]} 46... Bh3+ {[%clk
0:00:06.3]} 47. Ke2 {[%clk 0:00:10.5]} 47... Nd4+ {[%clk 0:00:07.4]} 48. Ke3
{[%clk 0:00:12]} 48... Nf5+ {[%clk 0:00:07.4]} 49. Kf4 {[%clk 0:00:13.4]} 49...
g5+ {[%clk 0:00:04]} 50. Kf3 {[%clk 0:00:14.7]} 1-0

[Event "*** Biggest EVER Titled Tuesday"]
[Site "Chess.com"]
[Date "2018.04.17"]
[Round "5"]
[White "Princec7"]
[Black "BIG_Pirate"]
[Result "1-0"]
[WhiteElo "2397"]
[BlackElo "2270"]
[TimeControl "180+2"]
[EndTime "14:09:52 PDT"]
[Termination "Princec7 won by resignation"]

1. e4 {[%clk 0:03:01.9]} 1... d5 {[%clk 0:03:00.9]} 2. exd5 {[%clk 0:03:01.7]}
2... Qxd5 {[%clk 0:03:02.8]} 3. Nc3 {[%clk 0:03:02.5]} 3... Qa5 {[%clk
0:03:04.2]} 4. d4 {[%clk 0:03:03.3]} 4... Nf6 {[%clk 0:03:05.5]} 5. Nf3 {[%clk
0:03:04.2]} 5... Bg4 {[%clk 0:03:06.4]} 6. Bc4 {[%clk 0:03:04.7]} 6... Nc6
{[%clk 0:03:06.2]} 7. h3 {[%clk 0:02:28.7]} 7... Qh5 {[%clk 0:03:01.5]} 8. Be2
{[%clk 0:02:20.1]} 8... O-O-O {[%clk 0:02:50.8]} 9. Be3 {[%clk 0:02:19.6]} 9...
e5 {[%clk 0:02:40.8]} 10. d5 {[%clk 0:02:01.5]} 10... e4 {[%clk 0:02:40.4]} 11.
Ng5 {[%clk 0:01:47]} 11... Bxe2 {[%clk 0:02:37.7]} 12. Qxe2 {[%clk 0:01:43.1]}
12... Qxe2+ {[%clk 0:02:35.9]} 13. Kxe2 {[%clk 0:01:43.6]} 13... Ne5 {[%clk
0:02:27.5]} 14. Bd4 {[%clk 0:01:32.8]} 14... h6 {[%clk 0:02:27.6]} 15. Bxe5
{[%clk 0:01:33.1]} 15... hxg5 {[%clk 0:02:28.2]} 16. Rad1 {[%clk 0:01:27.4]}
16... Be7 {[%clk 0:01:56.8]} 17. Bxf6 {[%clk 0:01:16.3]} 17... Bxf6 {[%clk
0:01:57.7]} 18. Nxe4 {[%clk 0:01:16.8]} 18... Bxb2 {[%clk 0:01:49.7]} 19. Nxg5
{[%clk 0:01:14.5]} 19... Rh5 {[%clk 0:01:32]} 20. h4 {[%clk 0:00:50.9]} 20...
Rd7 {[%clk 0:01:25.5]} 21. g4 {[%clk 0:00:50.5]} 21... Rh8 {[%clk 0:01:25.4]}
22. Kf3 {[%clk 0:00:45.9]} 22... Bf6 {[%clk 0:00:59.9]} 23. Ne4 {[%clk
0:00:45.6]} 23... Be5 {[%clk 0:00:44.7]} 24. c4 {[%clk 0:00:41.4]} 24... Re8
{[%clk 0:00:30]} 25. h5 {[%clk 0:00:39.5]} 25... Rde7 {[%clk 0:00:28.9]} 26. Ng3
{[%clk 0:00:17.8]} 26... Bxg3 {[%clk 0:00:25.9]} 27. Kxg3 {[%clk 0:00:19.7]}
27... f6 {[%clk 0:00:26.6]} 28. Rd2 {[%clk 0:00:19.3]} 28... Re4 {[%clk
0:00:27.4]} 29. Rc2 {[%clk 0:00:18.9]} 29... b6 {[%clk 0:00:27.8]} 30. f3 {[%clk
0:00:19.8]} 30... Rd4 {[%clk 0:00:29]} 31. h6 {[%clk 0:00:20.6]} 31... gxh6
{[%clk 0:00:29]} 32. Rxh6 {[%clk 0:00:22.5]} 32... Rf8 {[%clk 0:00:30.3]} 33. c5
{[%clk 0:00:15.9]} 33... Rxd5 {[%clk 0:00:27.7]} 34. cxb6 {[%clk 0:00:16.6]}
34... axb6 {[%clk 0:00:29.6]} 35. Rc6 {[%clk 0:00:17.4]} 35... Rc5 {[%clk
0:00:17.5]} 36. Rhxf6 {[%clk 0:00:15.4]} 36... Rd8 {[%clk 0:00:15.2]} 37. Rxc5
{[%clk 0:00:15.6]} 37... bxc5 {[%clk 0:00:17.1]} 38. Rf5 {[%clk 0:00:14.1]}
38... c4 {[%clk 0:00:15.7]} 39. Rc5 {[%clk 0:00:15.1]} 39... Rd4 {[%clk
0:00:16.6]} 40. Kf2 {[%clk 0:00:15.5]} 40... Kb7 {[%clk 0:00:18]} 41. Ke3 {[%clk
0:00:16.5]} 41... Rd3+ {[%clk 0:00:19.3]} 42. Ke4 {[%clk 0:00:16.4]} 42... Rc3
{[%clk 0:00:20.1]} 43. f4 {[%clk 0:00:15.7]} 43... Kb6 {[%clk 0:00:21]} 44. Rh5
{[%clk 0:00:15.6]} 44... Rc2 {[%clk 0:00:19.9]} 45. g5 {[%clk 0:00:14]} 45...
Rxa2 {[%clk 0:00:20.2]} 46. g6 {[%clk 0:00:14.5]} 46... Rg2 {[%clk 0:00:20.9]}
47. Rg5 {[%clk 0:00:14.1]} 47... Re2+ {[%clk 0:00:21.7]} 48. Kd4 {[%clk
0:00:14.1]} 48... c5+ {[%clk 0:00:16.8]} 49. Kxc4 {[%clk 0:00:14.2]} 49... Re4+
{[%clk 0:00:18.3]} 50. Kd3 {[%clk 0:00:14.1]} 1-0